fUSD/lending_fUSD_20241122
["ID","MTS","AMOUNT","RATE_DAILY","PERIOD"]
[342980702,1732246237228,-151.71332554,0.0006499,120]
[342980703,1732246237237,-500.0,0.00064999,120]
[342980704,1732246237247,-500.0,0.00064999,120]
[342980705,1732246237256,-411.77248256,0.00064999,120]
[342980706,1732246237266,-500.0,0.00064999,120]
[342980707,1732246237278,-500.0,0.00064999,120]
[342980708,1732246237288,-500.0,0.00064999,120]
[342980709,1732246237382,-1000.0,0.00065,2]
[342980710,1732246237393,-927.20886129,0.00065,2]
[342980711,1732246237403,-119417.43608985,0.00065,60]
[342980712,1732246237413,-1524.416796,0.00065021,4]
[342980713,1732246237423,-1301.8604653,0.00065021,4]
[342980714,1732246237432,-175.39044601,0.00065021,30]
[342980715,1732246237441,-658.7099132,0.00065066,4]
[342980716,1732246237451,-200.0,0.000652,120]
[342980717,1732246237461,-450.0,0.000654,120]
[342980718,1732246237471,-500.0,0.00065479,120]
[342980719,1732246237480,-500.0,0.00065479,120]
[342980720,1732246237489,-500.0,0.00065479,120]
[342980721,1732246237499,-500.0,0.00065479,120]
[342980722,1732246237509,-500.0,0.00065479,120]
[342980723,1732246237519,-500.0,0.00065479,120]
[342980724,1732246237530,-500.0,0.00065479,120]
[342980725,1732246237539,-3165.25213596,0.000655,120]
[342980726,1732246237548,-5101.52101833,0.000655,120]
[342980727,1732246237558,-200.0,0.000657,120]
[342980728,1732246237568,-150.0,0.0006578,120]
[342980729,1732246237577,-500.0,0.00065799,120]
[342980730,1732246237587,-500.0,0.00065799,120]
[342980731,1732246237597,-500.0,0.00065799,120]
[342980732,1732246237606,-2839.82,0.00065799,120]
[342980733,1732246237616,-589.26,0.00065799,120]
[342980734,1732246237625,-7147.5,0.00065799,120]
[342980735,1732246237637,-500.0,0.00065799,120]
[342980736,1732246237648,-707.84,0.00065799,120]
[342980737,1732246237658,-500.0,0.00065799,120]
[342980738,1732246237667,-500.0,0.00065799,120]
[342980739,1732246237677,-200.0,0.000658,120]
[342980740,1732246237686,-15137.09094942,0.000658,120]
[342980741,1732246237699,-474.7060718,0.000658,120]
[342980742,1732246237708,-6000.1596186,0.0006588,30]
[342980743,1732246237717,-500.0,0.00065899,120]
[342980744,1732246237726,-500.0,0.00065899,120]
[342980745,1732246237735,-166.8809007,0.000659,30]
[342980746,1732246237745,-30000.0,0.000659,120]
[342980747,1732246237755,-500.0,0.00065954,120]
[342980748,1732246237764,-150.98,0.0006599,120]
[342980749,1732246237775,-1000.0,0.00065999,120]
[342980750,1732246237785,-500.0,0.00065999,120]
[342980751,1732246237794,-500.0,0.00065999,120]
[342980752,1732246237804,-500.0,0.00065999,120]
[342980753,1732246237813,-500.0,0.00065999,120]
[342980754,1732246237823,-500.0,0.00065999,120]
[342980755,1732246237833,-2839.82,0.00065999,120]
[342980756,1732246237843,-589.26,0.00065999,120]
[342980757,1732246237853,-7147.5,0.00065999,120]
[342980758,1732246237862,-500.0,0.00065999,120]
[342980759,1732246237872,-707.84,0.00065999,120]
[342980760,1732246237881,-500.0,0.00065999,120]
[342980761,1732246237892,-500.0,0.00065999,120]
[342980762,1732246237902,-6980.0195841,0.00066,66]
[342980763,1732246237914,-35301.55756449,0.00066,66]
[342980764,1732246237926,-7718.42285141,0.00066,66]
[342980765,1732246237936,-350.0,0.00066,120]
[342980766,1732246237946,-5212.68677701,0.00066,120]
[342980767,1732246238023,-1581.67013599,0.00066,120]
[342980768,1732246238037,-1700.0000002,0.00066,120]
[342980769,1732246238049,-1505.6430868,0.00066,120]
[342980770,1732246238059,-1574.3569132,0.00066,30]
[342980771,1732246238071,-366.03,0.00066,30]
[342980772,1732246238083,-788.5,0.00066,30]
[342980773,1732246238098,-5902.9322972,0.00066,30]
[342980774,1732246238109,-115497.9229825,0.00066,30]
[342980775,1732246238119,-1000.0,0.00066,120]
[342980776,1732246238129,-450.0,0.00066,120]
[342980777,1732246238138,-8154.40199138,0.00066,30]
[342980778,1732246238147,-34921.69456013,0.00066,120]
[342980779,1732246238156,-327.00224969,0.00066,120]
[342980780,1732246238165,-151.0,0.00066,120]
[342980781,1732246238174,-151.68,0.00066164,60]
[342980782,1732246238184,-150.0,0.00066164,60]
[342980783,1732246238193,-150.0,0.00066164,60]
[342980784,1732246238203,-150.0,0.00066164,60]
[342980786,1732246238212,-302.73,0.00066271,120]
[342980787,1732246238221,-150.44,0.00066283,2]
[342980788,1732246238230,-500.0,0.00066478,120]
[342980789,1732246238240,-5641.8431753,0.0006648,120]
[342980791,1732246238251,-4490.92299579,0.0006648,120]
[342980793,1732246238260,-1000.0,0.00066599,120]
[342980795,1732246238272,-126296.36698321,0.000666,20]
[342980797,1732246238291,-291.89945048,0.000666,20]
[342980799,1732246238393,-12612.22208144,0.000666,20]
[342980802,1732246238572,-713.2688904,0.000666,20]
[342980803,1732246238584,-9261.52160548,0.000666,20]
[342980804,1732246238595,-2067.21978566,0.000666,20]
[342980805,1732246238971,-762285.67326006,0.000666,20]
[342980806,1732246238983,-509.16789362,0.000666,20]
[342980807,1732246238995,-98893.20081538,0.000666,20]
[342980808,1732246239146,-919.981179,0.000575,120]
[342980809,1732246239156,-500.0,0.0005999,10]
[342980810,1732246239170,-19386.2085994,0.000666,20]
[342980811,1732246239182,-8247.13928738,0.000666,20]
[342980812,1732246239193,-4455.4899702,0.000666,20]
[342980813,1732246239205,-1001.93554404,0.000666,20]
[342980814,1732246239215,-3563.0206263,0.000666,20]
[342980815,1732246239227,-2963.5167157,0.000666,20]
[342980816,1732246239238,-39701.36206125,0.000666,20]
[342980817,1732246239250,-191625.01909626,0.000666,20]
[342980818,1732246239262,-464.2800001,0.000666,20]
[342980823,1732246240458,-500.0,0.00061504,2]
[342980824,1732246240467,-500.0,0.00063013,120]
[342980825,1732246240477,-500.0,0.00063013,120]
[342980826,1732246240486,-496.97710913,0.000666,20]
[342980827,1732246240497,-220128.92646409,0.000666,20]
[342980828,1732246240507,-432.78229547,0.000666,20]
[342980829,1732246240519,-32313.07519215,0.000666,20]
[342980830,1732246240532,-304.33735203,0.000666,20]
[342980831,1732246240544,-23526.06271843,0.000666,20]
[342980832,1732246240650,-339.82,0.00065798,120]
[342980833,1732246240659,-63986.0826096,0.000666,20]
[342980834,1732246240671,-11771.25704424,0.000666,20]
[342980835,1732246240681,-2384.59014389,0.000666,20]
[342980836,1732246240692,-510.45244229,0.000666,20]
[342980837,1732246240703,-3956.04413654,0.000666,20]
[342980838,1732246240714,-1001.64978877,0.000666,20]
[342980839,1732246240839,-500.0,0.00061773,30]
[342980840,1732246240848,-60.2733022,0.000666,20]
[342980856,1732246244226,-326.1528,0.00060141,120]
[342980857,1732246244238,-1177.5522,0.00060141,120]
[342980858,1732246244248,-500.0,0.00062357,2]
[342980859,1732246244258,-2352.88538395,0.000666,20]
[342980860,1732246244281,-5544.2039234,0.000666,20]
[342980861,1732246244293,-600.23121034,0.000666,20]
[342980862,1732246244304,-99871.40000003,0.000666,20]
[342980863,1732246244316,-123623.75,0.000666,20]
[342980864,1732246244329,-25969.036658,0.000666,20]
[342980865,1732246244341,-6181.70323779,0.000666,20]
[342980866,1732246244354,-7302.29256193,0.000666,20]
[342980867,1732246244366,-16583.83111261,0.000666,20]
[342980868,1732246244377,-2386.76836613,0.000666,20]
[342980869,1732246244409,-270.98,0.000666,20]
[342980870,1732246244420,-600.0,0.000666,20]
[342980871,1732246244431,-967676.82377405,0.000666,20]
[342980872,1732246244443,-10104.00002526,0.000666,20]
[342980874,1732246244581,-2668.27,0.000666,20]
[342981086,1732246246513,-1678.0,0.00060184,60]
[342981087,1732246246523,-1678.0,0.00060804,60]
[342981088,1732246246538,-1678.0,0.00061425,60]
[342981089,1732246246548,-818.094,0.00062045,60]
[342981090,1732246246561,-859.906,0.00062045,60]
[342981091,1732246246571,-1678.0,0.00062666,60]
[342981092,1732246246582,-1678.0,0.00063286,60]
[342981093,1732246246592,-1678.0,0.00063906,60]
[342981094,1732246246602,-4908.25726179,0.000666,20]
[342981101,1732246246670,-674.03077129,0.000666,20]
[342981103,1732246246682,-987.312,0.000666,20]
[342981105,1732246246694,-1789.91464437,0.000666,20]
[342981107,1732246246705,-449.98500005,0.000666,20]
[342981109,1732246246718,-21981.04375,0.000666,20]
[342981111,1732246246730,-325.31669327,0.000666,20]
[342981114,1732246246741,-2573.72966873,0.000666,20]
[342981116,1732246246752,-1235.7920089,0.000666,20]
[342981129,1732246246876,-204443.89514593,0.000666,20]
[342981132,1732246246888,-111405.10661835,0.000666,20]
[342981410,1732246636291,741.8318839,0.00024,30]
[342982023,1732247144130,-158.24,0.00015342,2]
[342982024,1732247144152,-250.0,0.00031,2]
[342982025,1732247144173,-197.99110958,0.000314,2]
[342982026,1732247144195,-150.0,0.00031479,2]
[342982027,1732247144216,-150.0,0.00031499,2]
[342982028,1732247144239,-500.0,0.000315,30]
[342982029,1732247144261,-500.0,0.000315,30]
[342982030,1732247144282,-643.27558203,0.000315,30]
[342982031,1732247144303,-535.99186799,0.000315,30]
[342982032,1732247144323,-500.0,0.000315,30]
[342982033,1732247144343,-500.0,0.000315,30]
[342982034,1732247144364,-500.0,0.000315,30]
[342982035,1732247144385,-500.0,0.000315,30]
[342982036,1732247144406,-502.76321092,0.000315,30]
[342982037,1732247144427,-500.0,0.000315,30]
[342982038,1732247144448,-500.0,0.000315,30]
[342982039,1732247144471,-758.29719581,0.000315,30]
[342982040,1732247144491,-500.0,0.000315,30]
[342982041,1732247144511,-500.0,0.000315,30]
[342982042,1732247144534,-500.0,0.000315,30]
[342982043,1732247144556,-978.51775687,0.000315,30]
[342982044,1732247144577,-861.05229001,0.000315,30]
[342982045,1732247144597,-500.0,0.000315,30]
[342982046,1732247144622,-500.0,0.000315,30]
[342982047,1732247144645,-500.0,0.000315,30]
[342982048,1732247144665,-500.0,0.000315,30]
[342982049,1732247144686,-500.0,0.000315,30]
[342982050,1732247144706,-500.0,0.000315,30]
[342982051,1732247144729,-500.0,0.000315,30]
[342982052,1732247144750,-500.0,0.000315,30]
[342982053,1732247144771,-500.0,0.000315,30]
[342982054,1732247144795,-500.0,0.000315,30]
[342982055,1732247144814,-500.0,0.000315,30]
[342982056,1732247144835,-611.98996891,0.000315,30]
[342982057,1732247144857,-245.692,0.000315,29]
[342982058,1732247144878,-500.0,0.0003151,30]
[342982059,1732247144898,-500.0,0.0003151,30]
[342982060,1732247144919,-500.0,0.0003151,30]
[342982061,1732247144940,-500.0,0.0003151,30]
[342982062,1732247144960,-500.0,0.0003151,30]
[342982063,1732247144983,-500.0,0.0003151,30]
[342982064,1732247145004,-500.0,0.0003151,30]
[342982065,1732247145026,-500.0,0.0003151,30]
[342982066,1732247145047,-500.0,0.0003151,30]
[342982067,1732247145069,-500.0,0.0003151,30]
[342982068,1732247145089,-500.0,0.0003151,30]
[342982069,1732247145110,-500.0,0.0003151,30]
[342982070,1732247145131,-500.0,0.0003151,30]
[342982071,1732247145152,-547.48186467,0.0003151,30]
[342982072,1732247145172,-551.53972662,0.0003151,30]
[342982073,1732247145192,-500.0,0.0003151,30]
[342982074,1732247145214,-500.0,0.0003151,30]
[342982075,1732247145237,-500.0,0.0003151,30]
[342982076,1732247145257,-500.0,0.0003151,30]
[342982077,1732247145278,-500.0,0.0003151,30]
[342982078,1732247145298,-500.0,0.0003151,30]
[342982079,1732247145318,-500.0,0.0003151,30]
[342982080,1732247145338,-500.0,0.0003151,30]
[342982081,1732247145359,-500.0,0.0003151,30]
[342982082,1732247145379,-500.0,0.0003151,30]
[342982083,1732247145400,-500.0,0.0003151,30]
[342982084,1732247145420,-500.0,0.0003151,30]
[342982085,1732247145440,-500.0,0.0003151,30]
[342982086,1732247145460,-500.0,0.0003151,30]
[342982087,1732247145483,-500.0,0.0003151,30]
[342982088,1732247145503,-500.0,0.0003151,30]
[342982089,1732247145523,-500.0,0.0003151,30]
[342982090,1732247145548,-500.0,0.0003151,30]
[342982091,1732247145571,-300.0,0.00033,2]
[342982092,1732247145591,-150.0,0.00034548,10]
[342982093,1732247145613,-350.0,0.00035,2]
[342982094,1732247145634,-400.0,0.00037,2]
[342982095,1732247145654,-1573.25,0.00037,10]
[342982096,1732247145673,-303.278411,0.000374,120]
[342982097,1732247145694,-309.180247,0.000427,58]
[342982098,1732247145714,-1003.26,0.000427,58]
[342982099,1732247145736,-825.230629,0.000428,30]
[342982100,1732247145756,-163.97,0.000483,2]
[342982101,1732247145777,-981.09,0.000495,7]
[342982102,1732247145799,-22721.88311488,0.000498,120]
[342982103,1732247145821,-245.692,0.00051125,92]
[342982104,1732247145847,-291.02,0.00053173,2]
[342982105,1732247145871,-488.1,0.0005479,120]
[342982106,1732247145891,-1000.0,0.00054795,120]
[342982107,1732247145913,-534.0,0.00054795,120]
[342982108,1732247145934,-505.0,0.00054795,120]
[342982109,1732247145954,-150.33,0.00054837,120]
[342982110,1732247145976,-1000.0,0.00054919,120]
[342982111,1732247145996,-1111.18,0.00055041,2]
[342982112,1732247146016,-1000.0,0.00055044,120]
[342982113,1732247146037,-250.0,0.00055114,120]
[342982114,1732247146057,-1000.0,0.00055168,120]
[342982115,1732247146077,-1000.0,0.00055293,120]
[342982116,1732247146099,-1000.0,0.00055338,120]
[342982117,1732247146119,-1000.0,0.00055417,120]
[342982118,1732247146142,-291.02,0.00055437,2]
[342982119,1732247146164,-1000.0,0.00055542,120]
[342982120,1732247146185,-1000.0,0.00055666,120]
[342982121,1732247146207,-1000.0,0.00055791,120]
[342982122,1732247146233,-1000.0,0.00055915,120]
[342982123,1732247146255,-580.71,0.00055957,2]
[342982124,1732247146277,-1000.0,0.0005604,120]
[342982125,1732247146301,-162.69,0.00056147,120]
[342982126,1732247146322,-1000.0,0.00056164,120]
[342982127,1732247146345,-1000.0,0.00056289,120]
[342982128,1732247146366,-1000.0,0.00056413,120]
[342982129,1732247146388,-1000.0,0.00056538,120]
[342982130,1732247146408,-1000.0,0.00056663,120]
[342982131,1732247146429,-1000.0,0.00056787,120]
[342982132,1732247146449,-1000.0,0.00056912,120]
[342982133,1732247146473,-1000.0,0.00057036,120]
[342982134,1732247146494,-1000.0,0.00057161,120]
[342982135,1732247146514,-1000.0,0.00057285,120]
[342982136,1732247146538,-1000.0,0.0005741,120]
[342982137,1732247146558,-1000.0,0.00057534,120]
[342982138,1732247146581,-500.0,0.00057548,2]
[342982139,1732247146603,-249.03,0.00057581,30]
[342982140,1732247146624,-165.57791555,0.00057659,120]
[342982141,1732247153206,-834.42208445,0.00057659,120]
[342982142,1732247153232,-291.02,0.00057701,2]
[342982143,1732247153255,-1000.0,0.00057783,120]
[342982144,1732247153277,-1000.0,0.00057908,120]
[342982145,1732247153299,-887.35147196,0.00058,59]
[342982146,1732247153320,-1780.22298754,0.00058,30]
[342982147,1732247153342,-1000.0,0.00058032,120]
[342982148,1732247153362,-1000.0,0.00058157,120]
[342982149,1732247153383,-1000.0,0.00058281,120]
[342982150,1732247153403,-1000.0,0.00058406,120]
[342982151,1732247153423,-1000.0,0.00058531,120]
[342982152,1732247153443,-1000.0,0.00058655,120]
[342982153,1732247153464,-1000.0,0.0005878,120]
[342982154,1732247153490,-1000.0,0.00058904,120]
[342982155,1732247153509,-1000.0,0.00059029,120]
[342982156,1732247153533,-1000.0,0.00059153,120]
[342982157,1732247153553,-1000.0,0.00059278,120]
[342982158,1732247153573,-1000.0,0.00059402,120]
[342982159,1732247153593,-1000.0,0.00059527,120]
[342982160,1732247153614,-1000.0,0.00059651,120]
[342982161,1732247153634,-23900.0,0.00059683,2]
[342982162,1732247153653,-1000.0,0.00059776,120]
[342982163,1732247153674,-122.60603718,0.000598,60]
[342982164,1732247225112,-150.0,0.00016862,2]
[342982165,1732247225133,-1089.03351402,0.00058604,30]
[342982166,1732247225155,-597.30113902,0.000598,60]
[342982167,1732247225179,-692.30299168,0.000598,15]
[342982168,1732247225203,-700.0,0.00059899,15]
[342982169,1732247225226,-282.0,0.00059899,90]
[342982170,1732247225250,-15631.3598,0.000599,2]
[342982171,1732247225273,-3375.78289549,0.000599,2]
[342982172,1732247225296,-1000.0,0.000599,120]
[342982173,1732247225318,-291.02,0.00059965,2]
[342982174,1732247225338,-25.07529384,0.00060025,120]
[342982175,1732247227100,-974.92470616,0.00060025,120]
[342982176,1732247227122,-11671.60516665,0.00060049,15]
[342982177,1732247227142,-1000.0,0.00060149,120]
[342982178,1732247227162,-1000.0,0.00060274,120]
[342982179,1732247227290,-1000.0,0.00060399,120]
[342982180,1732247227315,-14870.27,0.000605,30]
[342982181,1732247227336,-11104.30215219,0.00060502,30]
[342982182,1732247229129,-13895.69784781,0.00060502,30]
[342982183,1732247229149,-1000.0,0.00060523,120]
[342982184,1732247229171,-250.0,0.00060588,120]
[342982185,1732247229192,-194.47,0.00060615,2]
[342982186,1732247229213,-170.47,0.00060615,2]
[342982187,1732247229233,-1000.0,0.00060648,120]
[342982188,1732247229254,-1000.0,0.00060772,120]
[342982189,1732247229274,-1000.0,0.00060897,120]
[342982190,1732247229296,-151.7,0.00060918,2]
[342982191,1732247229316,-5000.0,0.00061,120]
[342982192,1732247229336,-321.29179995,0.00061,120]
[342982193,1732247229356,-5247.282775,0.00061,120]
[342982194,1732247229377,-1000.0,0.00061021,120]
[342982195,1732247229396,-1000.0,0.00061146,120]
[342982196,1732247229416,-1000.0,0.0006127,120]
[342982197,1732247229436,-1000.0,0.00061395,120]
[342982198,1732247229457,-1000.0,0.00061519,120]
[342982199,1732247229477,-1000.0,0.00061644,120]
[342982200,1732247229497,-201.0,0.0006166,120]
[342982201,1732247229516,-250.0,0.00061682,120]
[342982202,1732247229539,-1000.0,0.00061768,120]
[342982203,1732247229560,-12052.1465363,0.00061815,120]
[342982204,1732247229585,-1000.0,0.00061893,120]
[342982205,1732247229612,-50000.0,0.00062,120]
[342982206,1732247229632,-5000.0,0.00062,120]
[342982207,1732247229653,-1000.0,0.00062017,120]
[342982208,1732247229673,-531.2865622,0.00062045,60]
[342982209,1732247229695,-152.27,0.000621,63]
[342982210,1732247229718,-152.27,0.000621,63]
[342982211,1732247229738,-1000.0,0.00062142,120]
[342982212,1732247229758,-291.02,0.00062229,2]
[342982213,1732247229781,-1000.0,0.00062256,120]
[342982214,1732247229801,-1000.0,0.00062267,120]
[342982215,1732247229822,-4181.0,0.00062372,117]
[342982216,1732247229844,-1000.0,0.00062391,120]
[342982217,1732247229870,-1000.0,0.00062516,120]
[342982218,1732247229890,-849.12065434,0.0006254,28]
[342982219,1732247229910,-150.0,0.00062568,60]
[342982220,1732247229930,-1000.0,0.0006264,120]
[342982221,1732247229950,-1000.0,0.00062765,120]
[342982222,1732247229970,-1000.0,0.00062889,120]
[342982223,1732247229991,-50000.0,0.00063,120]
[342982224,1732247230011,-5000.0,0.00063,120]
[342982225,1732247230032,-10216.69741463,0.00063,120]
[342982226,1732247230054,-591.85,0.00063013,120]
[342982227,1732247230076,-506.63864946,0.00063013,120]
[342982228,1732247230097,-500.0,0.00063013,120]
[342982229,1732247230118,-501.34191521,0.00063013,120]
[342982230,1732247230139,-306.27484502,0.00063013,120]
[342982231,1732247230160,-313.29853902,0.00063013,120]
[342982232,1732247230181,-315.33661596,0.00063013,120]
[342982233,1732247230201,-500.0,0.00063013,120]
[342982234,1732247230222,-522.34,0.00063013,120]
[342982235,1732247230243,-515.48370508,0.00063013,120]
[342982236,1732247230265,-500.0,0.00063013,120]
[342982237,1732247230288,-500.0,0.00063013,120]
[342982238,1732247230309,-500.0,0.00063013,120]
[342982239,1732247230329,-500.0,0.00063013,120]
[342982240,1732247230349,-500.0,0.00063013,120]
[342982241,1732247230370,-288.9,0.00063013,120]
[342982242,1732247230390,-398.36234151,0.00063013,120]
[342982243,1732247230410,-350.4405892,0.00063013,120]
[342982244,1732247230431,-500.0,0.00063013,120]
[342982245,1732247230451,-500.0,0.00063013,120]
[342982246,1732247230473,-500.0,0.00063013,120]
[342982247,1732247230493,-500.0,0.00063013,120]
[342982248,1732247230515,-500.0,0.00063013,120]
[342982249,1732247230538,-500.0,0.00063013,120]
[342982250,1732247230562,-500.0,0.00063013,21]
[342982251,1732247230583,-500.0,0.00063013,120]
[342982252,1732247230606,-500.0,0.00063013,120]
[342982253,1732247230629,-500.0,0.00063013,120]
[342982254,1732247230652,-1000.0,0.00063014,120]
[342982255,1732247230672,-1000.0,0.00063138,120]
[342982256,1732247230694,-692.30299162,0.00063144,15]
[342982257,1732247230715,-1000.0,0.00063263,120]
[342982258,1732247230736,-201.0,0.0006333,120]
[342982259,1732247230758,-11671.60516663,0.00063366,15]
[342982260,1732247230779,-1000.0,0.00063387,120]
[342982261,1732247230801,-18613.98782839,0.000635,120]
[342982262,1732247230822,-1000.0,0.00063512,120]
[342982263,1732247230844,-174.219,0.0006359,120]
[342982264,1732247230864,-1000.0,0.00063636,120]
[342982265,1732247230885,-1000.0,0.00063761,120]
[342982266,1732247230905,-1000.0,0.00063885,120]
[342982267,1732247230925,-5000.0,0.00064,120]
[342982268,1732247230946,-1000.0,0.0006401,120]
[342982269,1732247230967,-1000.0,0.00064134,120]
[342982270,1732247230986,-1000.0,0.00064259,120]
[342982271,1732247231008,-162.69,0.0006433,120]
[342982272,1732247231030,-1000.0,0.00064384,120]
[342982273,1732247231054,-198.75963264,0.000644,30]
[342982274,1732247231076,-1500.0,0.000644,120]
[342982275,1732247231099,-15472.2703,0.000644,2]
[342982276,1732247231120,-902.0,0.00064478,25]
[342982277,1732247231141,-291.02,0.00064493,2]
[342982278,1732247231163,-500.0,0.00064499,120]
[342982279,1732247231185,-500.0,0.00064499,120]
[342982280,1732247231207,-15448.89900282,0.000645,120]
[342982281,1732247231262,-34551.10099718,0.000645,120]
[342982282,1732247231286,-1000.0,0.00064508,120]
[342982283,1732247231308,-1000.0,0.00064633,120]
[342982284,1732247231329,-1000.0,0.00064757,120]
[342982285,1732247231350,-1000.0,0.00064882,120]
[342982286,1732247231370,-299.9527354,0.00064957,120]
[342982287,1732247231390,-201.0,0.0006499,120]
[342982288,1732247231411,-500.0,0.00064999,120]
[342982289,1732247231431,-154.48257988,0.00065,30]
[342982290,1732247231456,-50000.0,0.00065,120]
[342982291,1732247231476,-4866.0,0.00065,120]
[342982292,1732247231496,-1000.0,0.00065006,120]
[342982293,1732247231517,-1000.0,0.00065131,120]
[342982294,1732247231540,-1000.0,0.00065255,120]
[342982295,1732247231560,-1000.0,0.0006538,120]
[342982296,1732247231584,-150.0,0.0006549,120]
[342982297,1732247231606,-15373.38403608,0.000655,120]
[342982298,1732247241097,-34626.61596392,0.000655,120]
[342982299,1732247241118,-1000.0,0.00065504,120]
[342982300,1732247241139,-1000.0,0.00065629,120]
[342982301,1732247241161,-500.0,0.00065753,120]
[342982302,1732247241187,-500.0,0.00065753,120]
[342982303,1732247241208,-637.7,0.00065753,120]
[342982304,1732247241230,-500.0,0.00065753,120]
[342982305,1732247241252,-500.0,0.00065753,120]
[342982306,1732247241274,-579.96,0.00065753,120]
[342982307,1732247241296,-500.0,0.00065753,120]
[342982308,1732247241317,-500.0,0.00065753,120]
[342982309,1732247241337,-500.0,0.00065753,120]
[342982310,1732247241357,-500.0,0.00065753,120]
[342982311,1732247241377,-500.0,0.00065753,120]
[342982312,1732247241398,-500.0,0.00065753,120]
[342982313,1732247241418,-500.0,0.00065753,120]
[342982314,1732247241439,-500.0,0.00065753,120]
[342982315,1732247241460,-500.0,0.00065753,120]
[342982316,1732247241480,-500.0,0.00065753,120]
[342982317,1732247241502,-500.0,0.00065753,120]
[342982318,1732247241526,-500.0,0.00065753,120]
[342982319,1732247241550,-598.24837849,0.00065753,120]
[342982320,1732247241574,-500.0,0.00065753,120]
[342982321,1732247241595,-366.03648234,0.00065753,120]
[342982322,1732247241618,-206.2617783,0.00065753,120]
[342982323,1732247241641,-623.83,0.00065753,120]
[342982324,1732247241664,-623.83,0.00065753,120]
[342982325,1732247241685,-500.0,0.00065753,120]
[342982326,1732247241707,-518.1,0.00065753,120]
[342982327,1732247241729,-500.0,0.00065753,120]
[342982328,1732247241752,-500.0,0.00065753,120]
[342982329,1732247241774,-500.0,0.00065753,120]
[342982330,1732247241800,-500.0,0.00065753,120]
[342982331,1732247241821,-195.56,0.00065753,120]
[342982332,1732247241843,-579.20233022,0.00065753,120]
[342982333,1732247241863,-500.0,0.00065753,120]
[342982334,1732247241884,-500.0,0.00065753,120]
[342982335,1732247241906,-623.78,0.00065753,120]
[342982336,1732247241931,-545.5,0.00065753,120]
[342982337,1732247241953,-594.07,0.00065753,120]
[342982338,1732247241974,-500.0,0.00065753,120]
[342982339,1732247241996,-500.0,0.00065753,120]
[342982340,1732247242018,-292.55930213,0.00065753,120]
[342982341,1732247242045,-582.49,0.00065753,120]
[342982342,1732247242067,-500.0,0.00065753,120]
[342982343,1732247242089,-500.0,0.00065753,120]
[342982344,1732247242112,-500.0,0.00065753,120]
[342982345,1732247242136,-500.0,0.00065753,120]
[342982346,1732247242160,-398.07597102,0.00065753,120]
[342982347,1732247242184,-500.0,0.00065753,120]
[342982348,1732247242208,-500.0,0.00065753,120]
[342982349,1732247242231,-500.0,0.00065753,120]
[342982350,1732247242254,-500.0,0.00065753,120]
[342982351,1732247242275,-603.59,0.00065753,120]
[342982352,1732247242302,-603.59,0.00065753,120]
[342982353,1732247242323,-603.59,0.00065753,120]
[342982354,1732247242346,-435.30691303,0.00065753,120]
[342982355,1732247242368,-500.0,0.00065753,120]
[342982356,1732247242392,-500.0,0.00065753,120]
[342982357,1732247242415,-500.0,0.00065753,120]